fUST/lending_fUST_20260101
["ID","MTS","AMOUNT","RATE_DAILY","PERIOD"]
[400262280,1767239438971,-562.81952456,0.00010569,2]
[400262281,1767239438980,-500.0,0.00010569,2]
[400262282,1767239438989,-526.39126807,0.00010569,2]
[400262283,1767239438998,-500.0,0.00010569,2]
[400262284,1767239439008,-562.81952456,0.00010569,2]
[400262285,1767239439017,-526.39126807,0.00010569,2]
[400262286,1767239439026,-500.0,0.00010569,2]
[400262287,1767239439035,-526.39126807,0.00010569,2]
[400262288,1767239439044,-500.0,0.00010569,2]
[400262289,1767239439053,-500.0,0.00010569,2]
[400262290,1767239439061,-500.0,0.00010569,2]
[400262291,1767239439070,-526.39126807,0.00010569,2]
[400262292,1767239439079,-500.0,0.00010569,2]
[400262293,1767239439088,-526.39126807,0.00010569,2]
[400262294,1767239439097,-500.0,0.00010569,2]
[400262295,1767239439106,-500.0,0.00010569,2]
[400262296,1767239439115,-526.39126807,0.00010569,2]
[400262297,1767239439124,-526.39126807,0.00010569,2]
[400262298,1767239439133,-500.0,0.00010569,2]
[400262299,1767239439142,-500.0,0.00010569,2]
[400262300,1767239439151,-526.39126807,0.00010569,2]
[400262301,1767239439160,-500.0,0.00010569,2]
[400262302,1767239439169,-500.0,0.00010569,2]
[400262303,1767239439178,-526.39126807,0.00010569,2]
[400262304,1767239439187,-500.0,0.00010569,2]
[400262305,1767239439196,-500.0,0.00010569,2]
[400262306,1767239439205,-526.39126807,0.00010569,2]
[400262307,1767239439215,-500.0,0.00010569,2]
[400262308,1767239439224,-526.39126807,0.00010569,2]
[400262309,1767239439233,-500.0,0.00010569,2]
[400262310,1767239439242,-500.0,0.00010569,2]
[400262311,1767239439251,-500.0,0.00010569,2]
[400262312,1767239439260,-526.39126807,0.00010569,2]
[400262313,1767239439270,-500.0,0.00010569,2]
[400262314,1767239439279,-500.0,0.00010569,2]
[400262315,1767239439288,-526.39126807,0.00010569,2]
[400262316,1767239439297,-622.19758275,0.00010569,2]
[400262317,1767239439306,-526.39126807,0.00010569,2]
[400262318,1767239439315,-500.0,0.00010569,2]
[400262319,1767239439323,-526.39126807,0.00010569,2]
[400262320,1767239439332,-500.0,0.00010569,2]
[400262321,1767239439341,-500.0,0.00010569,2]
[400262322,1767239439350,-526.39126807,0.00010569,2]
[400262323,1767239439359,-526.39126807,0.00010569,2]
[400262324,1767239439368,-500.0,0.00010569,2]
[400262325,1767239439377,-500.0,0.00010569,2]
[400262326,1767239439385,-526.39126807,0.00010569,2]
[400262327,1767239439395,-500.0,0.00010569,2]
[400262328,1767239439404,-500.0,0.00010569,2]
[400262329,1767239439413,-526.39126807,0.00010569,2]
[400262330,1767239439422,-500.0,0.00010569,2]
[400262331,1767239439431,-500.0,0.00010569,2]
[400262332,1767239439440,-526.39126807,0.00010569,2]
[400262333,1767239439449,-500.0,0.00010569,2]
[400262334,1767239439457,-526.39126807,0.00010569,2]
[400262335,1767239439466,-500.0,0.00010569,2]
[400262336,1767239439475,-526.39126807,0.00010569,2]
[400262337,1767239439484,-500.0,0.00010569,2]
[400262338,1767239439492,-500.0,0.00010569,2]
[400262339,1767239439501,-500.0,0.00010569,2]
[400262340,1767239439510,-526.39126807,0.00010569,2]
[400262341,1767239439520,-526.39126807,0.00010569,2]
[400262342,1767239439529,-500.0,0.00010569,2]
[400262343,1767239439538,-526.39126807,0.00010569,2]
[400262344,1767239439546,-500.0,0.00010569,2]
[400262345,1767239439555,-526.39126807,0.00010569,2]
[400262346,1767239439564,-500.0,0.00010569,2]
[400262347,1767239439573,-526.39126807,0.00010569,2]
[400262348,1767239439586,-500.0,0.00010569,2]
[400262349,1767239439594,-241.53761438,0.00010569,2]
[400262350,1767239439603,-526.39126807,0.00010569,2]
[400262351,1767239439612,-500.0,0.00010569,2]
[400262352,1767239439622,-526.39126807,0.00010569,2]
[400262353,1767239439631,-526.39126807,0.00010569,2]
[400262354,1767239439640,-526.39126807,0.00010569,2]
[400262355,1767239439648,-896770.78861101,0.0001057,2]
[400262356,1767239439658,-290.50612559,0.00010668,2]
[400262357,1767239439666,-151.0,0.00010668,2]
[400262358,1767239439676,-151.0,0.00010668,2]
[400262359,1767239439685,-151.0,0.00010668,2]
[400262360,1767239439693,-151.0,0.00010668,2]
[400262361,1767239439702,-151.0,0.00010668,2]
[400262362,1767239439711,-151.0,0.00010668,2]
[400262363,1767239439720,-151.0,0.00010668,2]
[400262364,1767239439729,-151.0,0.00010668,2]
[400262365,1767239439738,-151.0,0.00010668,2]
[400262366,1767239439747,-151.0,0.00010668,2]
[400262367,1767239439755,-151.0,0.00010668,2]
[400262368,1767239439764,-151.0,0.00010668,2]
[400262369,1767239439773,-151.0,0.00010668,2]
[400262370,1767239439782,-151.0,0.00010668,2]
[400262371,1767239439791,-151.0,0.00010668,2]
[400262372,1767239439800,-242.32257062,0.00010668,2]
[400262373,1767239439809,-150.0,0.00010668,2]
[400262374,1767239439820,-500.0,0.00010843,2]
[400262375,1767239439829,-500.0,0.00010959,2]
[400262376,1767239439839,-500.0,0.00010959,2]
[400262377,1767239439848,-500.0,0.00010959,2]
[400262378,1767239439857,-500.0,0.00010959,2]
[400262379,1767239439866,-500.0,0.00010959,2]
[400262380,1767239439875,-500.0,0.00010959,2]
[400262381,1767239439884,-433.716312,0.00010959,2]
[400262382,1767239439894,-500.0,0.00010959,2]
[400262383,1767239439903,-531.07693925,0.00011,2]
[400262384,1767239439912,-1526.6589136,0.00011317,2]
[400262385,1767239439921,-363.0,0.00011619,2]
[400262386,1767239439931,-420.0,0.00011619,2]
[400262387,1767239439939,-420.0,0.00011626,2]
[400262388,1767239439952,-150.0,0.00012277,2]
[400262389,1767239439961,-874.47,0.00012329,2]
[400262390,1767239439970,-728.72,0.00012329,2]
[400262391,1767239439979,-607.27,0.00012329,2]
[400262392,1767239439989,-506.06,0.00012329,2]
[400262393,1767239439998,-421.71,0.00012329,2]
[400262394,1767239440007,-351.43,0.00012329,2]
[400262395,1767239440015,-292.86,0.00012329,2]
[400262396,1767239440026,-244.05,0.00012329,2]
[400262397,1767239440035,-203.37,0.00012329,2]
[400262398,1767239440044,-169.48,0.00012329,2]
[400262399,1767239440053,-847.4,0.00012329,2]
[400262400,1767239440062,-107435.91551414,0.000125,3]
[400262401,1767239440071,-177.0,0.00012668,2]
[400262402,1767239440080,-587.0,0.00012773,2]
[400262403,1767239440089,-181.0,0.00012789,2]
[400262404,1767239440098,-988.15,0.00013,2]
[400262405,1767239440107,-342.07,0.0001316,2]
[400262407,1767239440216,-342.07,0.0001316,2]
[400262408,1767239440225,-342.07,0.0001316,2]
[400262409,1767239440234,-342.07,0.0001316,2]
[400262410,1767239440243,-342.07,0.0001316,2]
[400262411,1767239440252,-342.07,0.0001316,2]
[400262412,1767239440261,-492.05,0.0001316,2]
[400262413,1767239440269,-500.0,0.00013273,2]
[400262414,1767239440278,-429.05427122,0.00013273,2]
[400262415,1767239440286,-500.0,0.00013273,2]
[400262416,1767239440295,-500.0,0.00013273,2]
[400262417,1767239440304,-497.57485249,0.00013273,2]
[400262418,1767239440312,-500.0,0.00013273,2]
[400262419,1767239440321,-510.90139551,0.00013273,2]
[400262420,1767239440330,-500.0,0.00013273,2]
[400262421,1767239440338,-505.39134232,0.00013273,2]
[400262422,1767239440347,-500.0,0.00013273,2]
[400262423,1767239440356,-500.0,0.00013273,2]
[400262424,1767239440365,-500.0,0.00013273,2]
[400262425,1767239440374,-500.0,0.00013273,2]
[400262426,1767239440383,-500.0,0.00013273,2]
[400262427,1767239440392,-150.0,0.00013393,2]
[400262428,1767239440402,-300.0,0.00013673,2]
[400262429,1767239440411,-500.0,0.00013698,2]
[400262430,1767239440420,-530.23109502,0.00013698,2]
[400262431,1767239440430,-634.29682706,0.00013698,2]
[400262432,1767239440439,-500.0,0.00013698,2]
[400262433,1767239440448,-500.0,0.00013698,2]
[400262435,1767239440457,-500.0,0.00013698,2]
[400262436,1767239440467,-500.0,0.00013698,2]
[400262437,1767239440476,-500.0,0.00013698,2]
[400262438,1767239440485,-500.0,0.00013698,2]
[400262439,1767239440494,-294.49990003,0.00013698,2]
[400262440,1767239440503,-582.30404194,0.00013698,2]
[400262442,1767239440513,-500.0,0.00013698,2]
[400262444,1767239440522,-500.0,0.00013698,2]
[400262445,1767239440531,-501.34554409,0.00013698,2]
[400262446,1767239440539,-2943.2889994,0.00013699,2]
[400262447,1767239440548,-1000.0,0.00013699,2]
[400262448,1767239440557,-1384.5057019,0.00013699,2]
[400262450,1767239440567,-15492.5924877,0.00013699,2]
[400262452,1767239440576,-856.807096,0.00013699,2]
[400262453,1767239440585,-500.0,0.00013699,2]
[400262454,1767239440594,-500.0,0.00013699,2]
[400262455,1767239440603,-500.0,0.00013699,2]
[400262456,1767239440612,-504.76855077,0.00013699,2]
[400262458,1767239440621,-500.0,0.00013699,2]
[400262460,1767239440631,-500.0,0.00013699,2]
[400262461,1767239440640,-251.00272433,0.00013699,2]
[400262462,1767239440649,-500.0,0.00013699,2]
[400262463,1767239440659,-500.0,0.00013699,2]
[400262464,1767239440668,-500.0,0.00013699,2]
[400262466,1767239440678,-500.0,0.00013699,2]
[400262467,1767239440686,-500.0,0.00013699,2]
[400262468,1767239440695,-159.77203792,0.00013699,2]
[400262469,1767239440705,-457.22674749,0.00013699,2]
[400262470,1767239440713,-500.0,0.00013699,2]
[400262471,1767239440722,-226.86184291,0.00013699,2]
[400262473,1767239440732,-500.87963329,0.00013699,2]
[400262474,1767239440741,-500.0,0.00013699,2]
[400262475,1767239440750,-150.0,0.00013699,2]
[400262476,1767239440759,-501.33800671,0.00013699,2]
[400262477,1767239440768,-500.0,0.00013699,2]
[400262478,1767239440777,-500.0,0.00013699,2]
[400262479,1767239440785,-500.0,0.00013699,2]
[400262480,1767239440794,-500.0,0.00013699,2]
[400262481,1767239440804,-500.50269191,0.00013699,2]
[400262482,1767239440812,-500.96605192,0.00013699,2]
[400262483,1767239440821,-500.40244192,0.00013699,2]
[400262484,1767239440830,-373.28262423,0.00013699,2]
[400262485,1767239440839,-500.41254196,0.00013699,2]
[400262486,1767239440848,-500.17833478,0.00013699,2]
[400262487,1767239440857,-500.0,0.00013699,2]
[400262488,1767239440866,-500.73491636,0.00013699,2]
[400262489,1767239440875,-500.49764939,0.00013699,2]
[400262490,1767239440884,-502.90555737,0.00013699,2]
[400262491,1767239440893,-383.99222334,0.00013699,2]
[400262492,1767239440901,-316.4851046,0.00013699,2]
[400262493,1767239440910,-500.0867866,0.00013699,2]
[400262494,1767239440919,-500.0,0.00013699,2]
[400262495,1767239440928,-501.3582173,0.00013699,2]
[400262496,1767239440937,-534.87876427,0.00013699,2]
[400262497,1767239440945,-524.82836698,0.00013699,2]
[400262498,1767239440958,-500.0,0.00013699,2]
[400262499,1767239440967,-500.95516799,0.00013699,2]
[400262500,1767239440976,-500.86510493,0.00013699,2]
[400262501,1767239440984,-501.34213841,0.00013699,2]
[400262502,1767239440994,-500.79513169,0.00013699,2]
[400262503,1767239441003,-151.0,0.00013699,2]
[400262504,1767239441011,-151.0,0.00013699,2]
[400262505,1767239441020,-151.0,0.00013699,2]
[400262506,1767239441029,-151.0,0.00013699,2]
[400262507,1767239441038,-151.0,0.00013699,2]
[400262508,1767239441047,-204.365296,0.00013699,2]
[400262509,1767239441056,-151.0,0.00013699,2]
[400262510,1767239441069,-1041.08539316,0.00013821,2]
[400262511,1767239441077,-501.63273171,0.00013821,2]
[400262512,1767239441086,-1000.0,0.00013821,2]
[400262513,1767239441095,-507.02514153,0.00013821,2]
[400262514,1767239441103,-1001.18082375,0.00013821,2]
[400262515,1767239441112,-1000.0,0.00013821,2]
[400262516,1767239441121,-527.43501459,0.00013821,2]
[400262517,1767239441130,-1000.0,0.00013821,2]
[400262518,1767239441139,-502.4239539,0.00013821,2]
[400262519,1767239441147,-1000.0,0.00013821,2]
[400262520,1767239441156,-599.0,0.00014042,2]
[400262521,1767239441165,-600.0,0.00014221,2]
[400262522,1767239441174,-1000.0,0.00014247,2]
[400262523,1767239441183,-1000.0,0.00014247,2]
[400262524,1767239441191,-503.848502,0.00014247,2]
[400262525,1767239441203,-1000.0,0.00014247,2]
[400262526,1767239441217,-198.34157968,0.00014247,2]
[400262527,1767239441229,-502.44886287,0.00014247,2]
[400262528,1767239441242,-1000.0,0.00014247,2]
[400262529,1767239441253,-1001.84835347,0.00014247,2]
[400262530,1767239441264,-1100.08232842,0.00014247,2]
[400262531,1767239441277,-400.0,0.00014247,2]
[400262532,1767239441289,-502.7866066,0.00014247,2]
[400262533,1767239441301,-1001.95418441,0.00014247,2]
[400262534,1767239441313,-1082.59288447,0.00014247,2]
[400262535,1767239441326,-160.44722878,0.00014247,2]
[400262536,1767239441337,-151.52027531,0.00014368,2]
[400262537,1767239441354,-1501.39987686,0.00014368,2]
[400262538,1767239441367,-1500.0,0.00014368,2]
[400262539,1767239441378,-1629.14531311,0.00014368,2]
[400262540,1767239441390,-471.46700113,0.00014375,2]
[400262541,1767239441402,-174.55,0.0001451,2]
[400262542,1767239441413,-694.09022983,0.00014651,2]
[400262543,1767239441424,-204.0,0.00014668,2]
[400262544,1767239441436,-1000.0,0.00014795,2]
[400262545,1767239441449,-501.18575005,0.00014795,2]
[400262546,1767239441461,-1042.69681858,0.00014795,2]
[400262547,1767239441472,-500.0,0.00014795,2]
[400262548,1767239441482,-37708.83366857,0.00014882,2]
[400262549,1767239441492,-1506.13602634,0.00014916,2]
[400262550,1767239441504,-471.46700113,0.00015029,2]
[400262551,1767239441515,-232.73,0.00015626,2]
[400262552,1767239441528,-471.46700113,0.00015683,2]
[400262553,1767239441539,-471.46700113,0.00016337,2]
[400262554,1767239441553,-231.0,0.00016668,2]
[400262555,1767239441567,-290.91,0.00016742,2]
[400262556,1767239441579,-471.93846813,0.00016991,2]
[400262557,1767239441590,-111312.50125264,0.00017,2]
[400262558,1767239441604,-151.0,0.00017,2]
[400262559,1767239441615,-151.0,0.00017,2]
[400262560,1767239441625,-151.0,0.00017,2]
[400262561,1767239441635,-151.0,0.00017,2]
[400262562,1767239441646,-4777.43011459,0.00017131,2]
[400262563,1767239441658,-150.0,0.00017132,30]
[400262564,1767239441672,-1165.09113547,0.000176,2]
[400262565,1767239441686,-71428.6,0.000178,3]
[400262566,1767239441697,-349.1,0.00017858,2]
[400262567,1767239441707,-161574.54161847,0.00018,2]
[400262568,1767239441719,-151.0,0.00018,2]
[400262569,1767239441731,-151.0,0.00018,2]
[400262570,1767239441743,-151.0,0.00018,2]
[400262571,1767239441756,-151.0,0.00018,2]
[400262572,1767239441768,-151.0,0.00018,2]
[400262573,1767239441779,-151.0,0.00018,2]
[400262574,1767239441790,-151.0,0.00018,2]
[400262575,1767239441801,-151.0,0.00018,2]
[400262576,1767239441812,-1041.66666667,0.00018334,2]
[400262577,1767239441824,-258.0,0.00018668,2]
[400262578,1767239441836,-150.0,0.00018689,30]
[400262579,1767239441848,-694.09022983,0.00018734,2]
[400262580,1767239441860,-302.8788636,0.000189,2]
[400262581,1767239441872,-407.28,0.00018974,2]
[400262582,1767239441883,-20000.0,0.00019,2]
[400262583,1767239441894,-151.0,0.00019,2]
[400262584,1767239441905,-419.44703275,0.00019089,2]
[400262585,1767239441916,-151.0,0.00019178,2]
[400262586,1767239441928,-151.0,0.00019178,2]
[400262587,1767239441939,-231.068894,0.00019178,2]
[400262588,1767239441953,-262.9,0.000192,2]
[400262589,1767239441964,-6586.91,0.000199,2]
[400262590,1767239441976,-465.46,0.0002009,2]
[400262591,1767239441987,-856.807096,0.00020187,2]
[400262592,1767239441999,-150.0,0.00020246,30]
[400262593,1767239442011,-285.0,0.00020668,2]
[400262594,1767239442022,-523.64,0.00021206,2]
[400262595,1767239442033,-170.0,0.00021753,5]
[400262596,1767239442046,-150.0,0.00021804,30]
[400262597,1767239442058,-500.0,0.00021917,2]
[400262598,1767239442070,-154.69,0.000222,7]
[400262599,1767239442082,-159.17,0.000222,2]
[400262600,1767239442093,-581.83,0.00022322,2]
[400262601,1767239442104,-312.0,0.00022668,2]
[400262602,1767239442116,-151.0,0.000228,10]
[400262603,1767239442128,-264.71133717,0.00022802,2]
[400262604,1767239442140,-694.09022983,0.00022817,2]
[400262605,1767239442151,-264.71133717,0.00022939,4]
[400262606,1767239442163,-628.0,0.00022999,2]
[400262607,1767239442174,-1364.0,0.00022999,2]
[400262608,1767239442186,-416.0,0.00022999,2]
[400262609,1767239442200,-416.0,0.00022999,2]
[400262610,1767239442211,-264.71133717,0.00023076,6]
[400262611,1767239442222,-264.71133717,0.00023214,8]
[400262612,1767239442234,-264.71133717,0.00023351,10]
[400262613,1767239442245,-150.0,0.00023361,30]
[400262614,1767239442256,-264.71133717,0.00023488,12]
[400262615,1767239442268,-264.71133717,0.00023625,14]
[400262616,1767239442280,-2000.0,0.00023626,7]
[400262617,1767239442293,-264.71133717,0.00023762,16]
[400262618,1767239442304,-35714.28,0.00023842,3]
[400262619,1767239442315,-264.71133717,0.00023899,18]
[400262620,1767239442325,-264.71133713,0.00024002,30]
[400262621,1767239442335,-264.71133717,0.00024037,20]
[400262622,1767239442345,-152.81821811,0.00024042,2]
[400262623,1767239442355,-2297.51961444,0.00024042,2]
[400262624,1767239442364,-171140.08402738,0.00024142,2]
[400262625,1767239442374,-200.0,0.00024142,3]
[400262626,1767239442384,-200.0,0.00024142,3]
[400262627,1767239442394,-200.0,0.00024142,3]
[400262628,1767239442404,-200.0,0.00024142,3]
[400262629,1767239442413,-200.0,0.00024142,3]
[400262630,1767239442423,-200.0,0.00024142,3]
[400262631,1767239442433,-151.0,0.00024142,2]
[400262632,1767239442443,-151.0,0.00024142,2]
[400262633,1767239442452,-155.922176,0.00024142,2]
[400262634,1767239442462,-151.0,0.00024142,2]
[400262635,1767239442603,-151.0,0.00024142,2]
[400262636,1767239442633,-151.0,0.00024142,2]
[400262637,1767239442646,-151.0,0.00024142,2]
[400262638,1767239442655,-264.71133717,0.00024174,22]
[400262639,1767239442664,-264.71133717,0.00024311,24]
[400262640,1767239442674,-264.71133717,0.00024448,26]
[400262641,1767239442684,-1000.0,0.00024557,5]
[400262642,1767239442694,-264.71133717,0.00024585,28]
[400262643,1767239442703,-35714.28,0.000246,3]
[400262644,1767239442713,-152.81821803,0.00024612,2]
[400262645,1767239442722,-147634.5545045,0.0002465,2]
[400262646,1767239442733,-513.71639582,0.0002465,2]
[400262647,1767239442743,-151.0,0.0002465,2]
[400262648,1767239442752,-151.0,0.0002465,2]
[400262649,1767239442762,-151.0,0.0002465,2]
[400262650,1767239442771,-151.0,0.0002465,2]
[400262651,1767239442780,-151.0,0.0002465,2]
[400262652,1767239442790,-248.67888,0.0002465,2]
[400262653,1767239442800,-380.0,0.00024658,2]
[400262654,1767239442809,-154.9072,0.00024658,2]
[400262655,1767239442819,-339.0,0.00024668,2]
[400262656,1767239442830,-16819.15259793,0.00024774,2]
[400262657,1767239442843,-77722.7634216,0.000249,2]
[400262658,1767239442855,-150.0,0.00024919,30]
[400262659,1767239442870,-155.0,0.00025041,15]
[400262660,1767239442880,-152.81821803,0.00025182,2]
[400262661,1767239442890,-2297.51961438,0.00025488,2]
[400262662,1767239442907,-262.9,0.000256,14]
[400262663,1767239442917,-152.81821803,0.00025751,2]
[400262664,1767239442927,-190.955,0.000258,11]
[400262665,1767239442937,-184.00470644,0.000258,11]
[400262666,1767239442949,-628.0,0.00025999,2]
[400262667,1767239442959,-1364.0,0.00025999,2]
[400262668,1767239442968,-416.0,0.00025999,2]
[400262669,1767239442978,-416.0,0.00025999,2]
[400262670,1767239442989,-152.81821803,0.00026321,2]
[400262671,1767239442999,-174.55,0.00026476,30]
[400262672,1767239443008,-366.0,0.00026668,2]
[400262673,1767239443018,-856.807096,0.00026676,2]
[400262674,1767239443030,-500.0,0.00026713,2]
[400262675,1767239443039,-150.0,0.00026713,2]
[400262676,1767239443049,-150.0,0.00026713,2]
[400262677,1767239443059,-500.0,0.00026713,2]
[400262678,1767239443068,-150.0,0.00026713,2]
[400262680,1767239443079,-500.0,0.00026713,2]
[400262682,1767239443088,-150.0,0.00026713,2]
[400262683,1767239443098,-210.27813514,0.00026713,2]
[400262684,1767239443107,-500.0,0.00026713,2]
[400262685,1767239443116,-150.0,0.00026713,2]
[400262686,1767239443126,-500.0,0.00026713,2]
[400262687,1767239443136,-268.48378423,0.00026713,2]
[400262688,1767239443146,-150.0,0.00026713,2]
[400262689,1767239443156,-150.0,0.00026713,2]
[400262690,1767239443166,-151.42564193,0.00026713,2]
[400262691,1767239443176,-150.0,0.00026713,2]
[400262692,1767239443185,-150.0,0.00026713,2]
[400262693,1767239443195,-500.0,0.00026713,2]
[400262694,1767239443204,-150.0,0.00026713,2]
[400262695,1767239443214,-150.0,0.00026713,2]
[400262696,1767239443223,-501.0951248,0.0002685,2]
[400262697,1767239443232,-150.39445871,0.0002685,2]
[400262698,1767239443242,-151.20601591,0.0002685,2]
[400262699,1767239443251,-524.93036213,0.0002685,2]
[400262700,1767239443260,-150.9648791,0.0002685,2]
[400262701,1767239443270,-502.40374864,0.0002685,2]
[400262702,1767239443279,-154.36410655,0.0002685,2]
[400262703,1767239443290,-501.02955512,0.0002685,2]
[400262704,1767239443300,-150.0,0.0002685,2]
[400262705,1767239443310,-501.75567666,0.0002685,2]
[400262706,1767239443319,-169.57342049,0.0002685,2]
[400262707,1767239443328,-150.44160571,0.0002685,2]
[400262708,1767239443338,-153.37346524,0.0002685,2]
[400262709,1767239443347,-150.0,0.0002685,2]
[400262710,1767239443357,-500.0,0.0002685,2]
[400262711,1767239443367,-150.0,0.0002685,2]
[400262712,1767239443376,-152.81821803,0.00026891,2]
[400262713,1767239443386,-694.09022983,0.000269,2]
[400262714,1767239443396,-2000.0,0.00026901,7]
[400262715,1767239443405,-2297.51961438,0.00026933,2]
[400262716,1767239443415,-150.0,0.00026987,2]
[400262717,1767239443425,-150.0,0.00026987,2]
[400262718,1767239443434,-500.0,0.00026987,2]
[400262719,1767239443443,-163.0,0.00027,7]
[400262720,1767239443453,-162.60368903,0.00027019,3]
[400262721,1767239443463,-151.0,0.000271,7]
[400262722,1767239443473,-151.0,0.000271,7]
[400262723,1767239443483,-151.0,0.000271,7]
[400262724,1767239443492,-151.0,0.000271,7]
[400262725,1767239443501,-151.0,0.000271,7]
[400262726,1767239443511,-35714.28,0.000271,3]
[400262727,1767239443521,-150.0,0.00027124,2]
[400262728,1767239443531,-150.0,0.00027124,2]
[400262729,1767239443540,-500.0,0.00027124,2]
[400262730,1767239443550,-150.0,0.00027261,2]
[400262731,1767239443560,-150.0,0.00027261,2]
[400262732,1767239443570,-151.0,0.00027397,7]
[400262733,1767239443580,-151.0,0.00027397,7]
[400262734,1767239443589,-151.0,0.00027397,7]
[400262735,1767239443598,-151.0,0.00027397,7]
[400262736,1767239443608,-151.0,0.00027397,7]
[400262737,1767239443618,-151.0,0.00027397,7]
[400262738,1767239443627,-151.0,0.00027397,7]
[400262739,1767239443638,-154.213646,0.00027397,7]
[400262740,1767239443647,-151.0,0.00027397,7]
[400262741,1767239443656,-151.0,0.00027397,7]
[400262742,1767239443667,-151.0,0.00027397,7]
[400262743,1767239443676,-186.375298,0.00027397,7]
[400262744,1767239443686,-234.643774,0.00027397,7]
[400262745,1767239443695,-242.224845,0.00027397,7]
[400262746,1767239443705,-242.224845,0.00027397,7]
[400262747,1767239443714,-242.224845,0.00027397,7]
[400262748,1767239443723,-242.224845,0.00027397,7]
[400262749,1767239443732,-242.224845,0.00027397,7]
[400262750,1767239443742,-242.224845,0.00027397,7]
[400262751,1767239443752,-242.224845,0.00027397,7]
[400262752,1767239443762,-242.224845,0.00027397,7]
[400262753,1767239443772,-242.224845,0.00027397,7]
[400262754,1767239443781,-242.224845,0.00027397,7]
[400262755,1767239443790,-242.224845,0.00027397,7]
[400262756,1767239443799,-242.224845,0.00027397,7]
[400262757,1767239443809,-242.224845,0.00027397,7]
[400262758,1767239443819,-242.224845,0.00027397,7]
[400262759,1767239443828,-242.224845,0.00027397,7]
[400262760,1767239443838,-242.224845,0.00027397,7]
[400262761,1767239443847,-151.0,0.00027397,7]
[400262762,1767239443857,-151.0,0.00027397,7]
[400262763,1767239443867,-151.0,0.00027397,7]
[400262765,1767239443876,-198.055814,0.00027397,7]
[400262766,1767239443885,-151.0,0.00027397,7]
[400262767,1767239443895,-151.0,0.00027397,7]
[400262768,1767239443904,-151.0,0.00027397,7]
[400262769,1767239443915,-151.0,0.00027397,7]
[400262770,1767239443924,-151.0,0.00027397,7]
[400262772,1767239443934,-151.0,0.00027397,7]
[400262774,1767239443943,-151.0,0.00027397,7]
[400262775,1767239443956,-151.0,0.00027397,7]
[400262776,1767239443966,-151.0,0.00027397,7]
[400262777,1767239443976,-151.0,0.00027397,7]
[400262779,1767239443985,-173.295049,0.00027397,7]
[400262781,1767239443995,-151.0,0.00027397,7]
[400262782,1767239444004,-280.12711,0.00027397,7]
[400262784,1767239444014,-151.0,0.00027397,7]
[400262786,1767239444024,-151.0,0.00027397,7]
[400262787,1767239444034,-151.0,0.00027397,7]
[400262789,1767239444044,-151.0,0.00027397,7]
[400262791,1767239444055,-151.0,0.00027397,7]
[400262793,1767239444066,-151.0,0.00027397,7]
[400262794,1767239444076,-151.0,0.00027397,7]
[400262795,1767239444087,-151.0,0.00027397,7]
[400262796,1767239444097,-152.825644,0.00027397,7]
[400262797,1767239444107,-151.0,0.00027397,7]
[400262798,1767239444118,-151.0,0.00027397,7]
[400262799,1767239444127,-151.0,0.00027397,7]
[400262800,1767239444137,-151.0,0.00027397,7]
[400262801,1767239444147,-151.0,0.00027397,7]